bitfinex-derivatives/quotes_SOLF0:USTF0_20250823
["timestamp","ask_amount","ask_price","bid_price","bid_amount"]
[1755964877708,2.26,202.68,202.65,4.9362]
[1755964878391,2.26,202.69,202.65,4.9362]
[1755964878592,2.26,202.68,202.65,4.9362]
[1755964878788,7.9775489,202.7,202.65,4.9362]
[1755964879390,2.26,202.67,202.65,4.9362]
[1755964879591,7.9775489,202.66,202.61,2.71]
[1755964879898,10.2375489,202.66,202.62,2.71]
[1755964880094,10.2375489,202.66,202.61,2.71]
[1755964880402,7.9775489,202.66,202.64,4.9363]
[1755964881199,7.9775489,202.66,202.64,7.6463]
[1755964881702,7.9775489,202.69,202.68,4.9355]
[1755964885301,7.9775489,202.69,202.68,7.6455]
[1755964886201,7.9775489,202.69,202.68,4.9355]
[1755964886399,10.2375489,202.69,202.66,4.9359]
[1755964886702,2.26,202.67,202.66,4.9359]
[1755964886901,10.2475489,202.69,202.66,4.9359]
[1755964887790,10.2475489,202.69,202.67,4.9356]
[1755964887996,7.9775489,202.69,202.68,2.71]
[1755964890008,2.0,202.7,202.69,4.9352]
[1755964890304,2.0,202.7,202.69,7.6452]
[1755964890507,331.76,202.81,202.69,7.6452]
[1755964890508,7.9775489,202.76,202.73,4.9342]
[1755964890709,129.9975489,202.76,202.73,4.9342]
[1755964891005,2.27,202.75,202.73,4.9342]
[1755964891605,129.9975489,202.76,202.69,24.6754]
[1755964891808,129.9975489,202.76,202.75,4.9338]
[1755964892407,10.2475489,202.76,202.73,7.6441]
[1755964895111,10.2475489,202.76,202.74,4.9339]
[1755964895302,7.9775489,202.76,202.74,7.6439]
[1755964897507,10.2475489,202.76,202.74,4.9339]
[1755964898319,10.2475489,202.76,202.72,4.9344]
[1755964898523,2.27,202.75,202.67,27.3885]
[1755964898721,2.27,202.75,202.68,4.58843436]
[1755964898920,2.27,202.75,202.69,4.58843436]
[1755964899121,2.27,202.75,202.67,27.3885]
[1755964899310,2.27,202.75,202.68,4.58826346]
[1755964899516,2.27,202.7,202.66,2.71]
[1755964899720,121.84,202.71,202.68,2.71]
[1755964899920,121.84,202.71,202.69,4.58861521]
[1755964900219,121.84,202.71,202.69,7.6451]
[1755964900721,121.84,202.71,202.69,4.9351]
[1755964903025,121.84,202.71,202.7,7.29920658]
[1755964903522,121.84,202.71,202.7,2.71]
[1755964904717,121.84,202.71,202.7,7.30049272]
[1755964905521,121.84,202.71,202.7,2.71]
[1755964905722,121.84,202.71,202.7,7.30066685]
[1755964907921,121.84,202.71,202.7,4.59066685]
[1755964908321,121.84,202.71,202.7,7.30066685]
[1755964908529,124.21,202.75,202.7,4.59066685]
[1755964908724,7.9775489,202.76,202.69,24.6755]
[1755964908725,2.0,202.74,202.72,2.71]
[1755964908933,2.0,202.74,202.73,4.59140043]
[1755964910031,129.8575489,202.76,202.74,4.9339]
[1755964910229,2.27,202.75,202.74,4.9339]
[1755964910431,129.8575489,202.76,202.74,4.9339]
[1755964910631,2.27,202.75,202.74,4.9339]
[1755964913335,2.27,202.75,202.68,2.71]
[1755964913336,121.78,202.75,202.68,2.71]
[1755964913537,2.27,202.74,202.7,2.71]
[1755964913730,2.27,202.74,202.71,4.67018223]
[1755964913931,2.27,202.74,202.72,4.67018223]
[1755964914130,2.27,202.74,202.71,4.9347]
[1755964914332,2.27,202.74,202.72,4.67024586]
[1755964914534,2.27,202.74,202.7,2.71]
[1755964914730,2.27,202.74,202.71,4.66996189]
[1755964915035,2.27,202.74,202.7,2.71]
[1755964915036,2.27,202.74,202.72,4.66996189]
[1755964915238,121.78,202.75,202.72,4.9344]
[1755964915633,2.27,202.73,202.66,27.3895]
[1755964915834,2.27,202.73,202.67,4.66991715]
[1755964916035,121.78,202.75,202.68,4.67058093]
[1755964916036,7.9775489,202.72,202.68,4.67058093]
[1755964916336,2.27,202.69,202.66,2.71]
[1755964916638,2.27,202.69,202.67,4.67064463]
[1755964916834,2.27,202.69,202.68,4.67064463]
[1755964917226,2.27,202.69,202.63,2.71]
[1755964917431,2.27,202.68,202.61,24.6858]
[1755964917630,121.8,202.67,202.61,24.6858]
[1755964918035,121.8,202.67,202.64,2.71]
[1755964918234,121.8,202.67,202.65,2.71]
[1755964918633,121.8,202.67,202.66,4.9357]
[1755964920235,124.07,202.67,202.66,4.9357]
[1755964921242,121.8,202.67,202.66,4.9357]
[1755964922241,2.0,202.71,202.69,4.9352]
[1755964922438,121.76,202.7,202.69,4.9352]
[1755964923048,125.99,202.71,202.69,4.9352]
[1755964924038,4.27,202.71,202.69,4.9352]
[1755964924242,125.95,202.71,202.69,4.9352]
[1755964925039,123.68,202.71,202.69,7.4952]
[1755964925245,2.0,202.71,202.69,7.4952]
[1755964925635,2.0,202.71,202.69,4.9352]
[1755964926244,2.0,202.71,202.69,7.4952]
[1755964930455,4.28,202.71,202.69,7.4952]
[1755964931147,2.0,202.71,202.69,7.4952]
[1755964931543,2.0,202.71,202.7,4.58406431]
[1755964932847,2.0,202.71,202.69,7.4952]
[1755964933054,2.0,202.71,202.7,4.58483475]
[1755964933853,2.0,202.71,202.7,4.58525101]
[1755964934553,2.0,202.71,202.7,4.58568972]
[1755964936855,2.0,202.71,202.7,4.5859087]
[1755964938154,4.28,202.71,202.7,4.5859087]
[1755964938455,2.28,202.68,202.64,2.56]
[1755964938656,7.9775489,202.69,202.64,2.56]
[1755964938657,123.9,202.67,202.64,2.56]
[1755964939159,123.9,202.67,202.65,4.936]
[1755964939656,121.62,202.67,202.65,7.496]
[1755964943460,121.62,202.67,202.66,2.56]
[1755964944663,2.28,202.7,202.67,4.9357]
[1755964944852,2.28,202.68,202.67,4.9357]
[1755964945355,123.9,202.68,202.67,4.9357]
[1755964945560,2.28,202.67,202.65,4.9361]
[1755964945860,2.28,202.67,202.63,2.56]
[1755964946455,2.28,202.67,202.58,9.8757]
[1755964946656,121.62,202.68,202.66,4.9358]
[1755964947761,123.9,202.68,202.66,4.9358]
[1755964950263,2.28,202.68,202.66,4.9358]
[1755964950454,123.9,202.68,202.66,4.9358]
[1755964952568,121.62,202.68,202.66,4.9358]
[1755964952863,123.9,202.68,202.66,4.9358]
[1755964953064,2.28,202.67,202.66,4.9358]
[1755964953264,2.28,202.67,202.66,9.42007974]
[1755964954063,121.62,202.68,202.66,9.42007974]
[1755964954264,121.62,202.68,202.66,4.9358]
[1755964954956,2.27,202.67,202.66,4.9358]
[1755964955154,121.62,202.68,202.66,9.42083738]
[1755964955366,121.62,202.68,202.66,4.9358]
[1755964956066,2.0,202.71,202.68,4.9354]
[1755964956267,121.62,202.7,202.68,4.9354]
[1755964956860,2.27,202.69,202.68,4.9354]
[1755964960868,123.87,202.69,202.68,4.9354]
[1755964964581,2.27,202.69,202.68,4.9354]
[1755964964869,123.87,202.69,202.68,4.9354]
[1755964966278,128.97572026,202.69,202.68,4.9354]
[1755964967264,4.27,202.71,202.7,4.935]
[1755964967471,130.97572026,202.71,202.7,4.935]
[1755964968278,123.87,202.71,202.7,4.935]
[1755964968474,128.97572026,202.71,202.7,4.935]
[1755964968673,123.87,202.71,202.7,4.935]
[1755964968876,128.97572026,202.71,202.7,4.935]
[1755964969380,128.97572026,202.71,202.7,9.61730489]
[1755964969976,128.97572026,202.71,202.7,4.935]
[1755964972380,128.97572026,202.71,202.7,9.61862098]
[1755964972975,128.97572026,202.71,202.7,4.935]
[1755964973278,128.97572026,202.71,202.7,9.61863761]
[1755964973977,128.97572026,202.71,202.7,4.935]
[1755964977282,128.97572026,202.71,202.7,9.61952311]
[1755964977973,123.87,202.71,202.7,9.61952311]
[1755964978178,128.97572026,202.71,202.7,9.61952311]
[1755964979679,123.87,202.71,202.7,9.61952311]
[1755964979879,128.97572026,202.71,202.7,9.61952311]
[1755964980277,2.27,202.74,202.73,4.9342]
[1755964980485,121.56,202.74,202.73,12.25872311]
[1755964980680,2.0,202.75,202.73,9.61872311]
[1755964980986,2.0,202.75,202.74,7.32452311]
[1755964981182,123.54,202.75,202.74,7.32452311]
[1755964981378,121.54,202.75,202.74,7.3614416]
[1755964983275,121.54,202.75,202.74,4.7214416]
[1755964983679,121.54,202.75,202.74,7.5114416]
[1755964984078,121.54,202.75,202.67,24.6786]
[1755964984079,123.81,202.75,202.68,2.79]
[1755964984284,123.81,202.75,202.69,4.71336865]
[1755964984481,121.54,202.75,202.7,4.71336865]
[1755964984690,2.27,202.73,202.71,4.71336865]
[1755964984884,2.27,202.73,202.72,4.71336865]
[1755964985182,123.79,202.73,202.72,4.71336865]
[1755964985382,121.52,202.73,202.71,4.9346]
[1755964985591,2.27,202.72,202.71,4.9346]
[1755964985880,2.27,202.72,202.71,4.71320315]
[1755964986085,10.23926402,202.72,202.61,2.79]
[1755964986280,2.27,202.71,202.62,4.08078413]
[1755964986486,121.52,202.7,202.63,8.79418106]
[1755964986685,121.52,202.7,202.64,4.71339693]
[1755964986985,121.52,202.7,202.65,4.71339693]
[1755964987187,2.27,202.68,202.66,4.71339693]
[1755964987384,2.27,202.68,202.67,4.71339693]
[1755964987584,123.79,202.68,202.67,9.64899693]
[1755964988877,121.52,202.68,202.67,9.64899693]
[1755964989281,121.52,202.68,202.67,12.43899693]
[1755964989482,121.52,202.68,202.67,9.64899693]
[1755964989681,121.52,202.68,202.67,12.43899693]
[1755964990784,121.52,202.68,202.67,9.64899693]
[1755964990985,121.52,202.68,202.67,9.64977106]
[1755964991987,2.27,202.7,202.69,4.9352]
[1755964992286,123.79,202.7,202.69,4.9352]
[1755964992589,123.79,202.7,202.69,9.64952595]
[1755964992784,2.0,202.75,202.73,4.9342]
[1755964992985,121.52,202.74,202.73,4.9342]
[1755964993386,123.79,202.74,202.73,4.9342]
[1755964994385,121.52,202.74,202.73,4.9342]
[1755964995085,123.79,202.74,202.71,4.9347]
[1755964995294,2.27,202.73,202.71,4.9347]
[1755964996386,7.96926402,202.72,202.64,2.79]
[1755964996692,121.5,202.71,202.65,4.71446753]
[1755964996986,121.5,202.71,202.61,27.475]
[1755964996987,2.27,202.69,202.66,4.71446753]
[1755964997188,2.27,202.68,202.67,4.71446753]
[1755964997588,2.27,202.68,202.67,9.65006753]
[1755964997786,121.5,202.71,202.67,4.71446753]
[1755964997985,2.27,202.7,202.68,4.71446753]
[1755964998185,121.5,202.69,202.64,2.79]
[1755964998394,121.5,202.69,202.66,2.79]
[1755964998689,121.5,202.69,202.67,4.71477431]
[1755964998991,121.5,202.69,202.68,4.71477431]
[1755964999494,121.5,202.69,202.68,9.65027431]
[1755964999988,7.96926402,202.72,202.68,4.71477431]
[1755965000193,4.27,202.73,202.72,4.9345]
[1755965000393,123.77,202.73,202.72,4.9345]
[1755965002889,2.27,202.73,202.72,4.9345]
[1755965003091,123.75,202.73,202.72,4.9345]
[1755965004092,2.27,202.73,202.72,4.9345]
[1755965004394,121.48,202.73,202.72,4.9345]
[1755965004797,123.75,202.73,202.72,4.9345]
[1755965008598,2.27,202.72,202.7,4.9348]
[1755965008799,2.27,202.71,202.7,4.9348]
[1755965009199,121.48,202.73,202.68,4.9354]
[1755965009387,2.27,202.69,202.68,4.9354]
[1755965009595,123.73,202.69,202.68,9.55320402]
[1755965010700,123.73,202.69,202.68,9.55328046]
[1755965011002,121.46,202.69,202.68,9.55328046]
[1755965011206,2.27,202.72,202.71,4.9347]
[1755965011497,123.73,202.72,202.71,4.9347]
[1755965011690,2.27,202.71,202.65,24.681]
[1755965011890,2.27,202.7,202.66,4.61801741]
[1755965012100,2.27,202.69,202.68,4.9355]
[1755965012296,2.27,202.69,202.68,9.55351741]
[1755965013708,2.27,202.69,202.68,4.9355]
[1755965014008,2.27,202.71,202.7,4.9349]
[1755965020008,2.27,202.71,202.68,4.9353]
[1755965020413,2.27,202.71,202.69,4.9351]
[1755965022214,2.27,202.7,202.67,4.9356]
[1755965022714,7.96926402,202.71,202.67,4.9356]
[1755965022911,4.27,202.7,202.65,4.9362]
[1755965023115,2.27,202.69,202.62,2.82]
[1755965023315,121.42,202.68,202.64,2.82]
[1755965023512,121.42,202.68,202.61,24.6851]
[1755965023716,2.27,202.67,202.64,2.82]
[1755965023917,121.42,202.68,202.62,2.82]
[1755965024113,123.69,202.68,202.63,4.6180561]
[1755965024313,123.69,202.68,202.65,2.82]
[1755965024515,123.69,202.68,202.66,4.9359]
[1755965024516,121.44,202.67,202.66,4.9359]
[1755965025016,123.71,202.67,202.66,4.9359]
[1755965025220,121.44,202.67,202.66,4.9359]
[1755965026216,123.71,202.67,202.66,4.9359]
[1755965026917,123.69,202.67,202.66,4.9359]
[1755965029321,121.42,202.67,202.66,7.7559]
[1755965030120,121.42,202.67,202.66,4.9359]
[1755965030318,123.69,202.67,202.66,4.9359]
[1755965031424,121.42,202.67,202.66,4.9359]
[1755965032924,2.27,202.67,202.66,4.9359]
[1755965033121,123.69,202.67,202.66,4.9359]
[1755965037916,2.27,202.66,202.59,2.82]
[1755965038116,2.27,202.66,202.6,4.54673837]
[1755965038320,2.27,202.66,202.61,4.54673837]
[1755965038521,2.27,202.66,202.63,2.82]
[1755965038720,2.27,202.65,202.64,4.9364]
[1755965041231,129.38926402,202.67,202.6,27.5072]
[1755965041232,129.38926402,202.67,202.66,4.936]
[1755965041418,131.65926402,202.67,202.66,4.936]
[1755965042828,129.38926402,202.67,202.66,4.936]
[1755965043220,131.65926402,202.67,202.66,4.936]
[1755965043933,131.61926402,202.67,202.66,4.936]
[1755965046330,128.7575924,202.67,202.66,4.936]
[1755965046735,128.7575924,202.67,202.64,7.7564]
[1755965046929,5.1075924,202.65,202.64,7.7564]
[1755965049534,5.1075924,202.65,202.64,4.9364]
[1755965050034,5.1075924,202.65,202.61,2.68]
[1755965050237,5.1075924,202.62,202.57,142.20135623]
[1755965050432,5.1075924,202.62,202.59,2.68]
[1755965050433,121.36,202.61,202.59,2.68]
[1755965050627,123.62,202.61,202.6,4.54920936]
[1755965051233,123.62,202.61,202.45,2.68]
[1755965051234,2.26,202.6,202.45,2.68]
[1755965051534,2.26,202.6,202.39,5.1075924]
[1755965051535,5.1075924,202.5,202.47,2.68]
[1755965051740,5.1075924,202.5,202.39,9.26516626]
[1755965051741,126.4675924,202.5,202.49,4.9401]
[1755965052137,126.4675924,202.5,202.48,2.68]
[1755965052138,121.36,202.5,202.48,2.68]
[1755965052336,2.26,202.49,202.42,27.3891]
[1755965052536,121.36,202.48,202.43,2.68]
[1755965052841,121.36,202.48,202.46,2.68]
[1755965053139,121.36,202.48,202.38,24.7133]
[1755965053342,2.26,202.53,202.32,251.36817386]
[1755965053343,2.63,202.43,202.32,24.7214]
[1755965053637,7.99548757,202.56,202.34,24.7189]
[1755965053638,133.18548757,202.47,202.34,24.7189]
[1755965053831,2.63,202.51,202.4,24.7116]
[1755965054030,2.63,202.53,202.4,24.7116]
[1755965054236,2.63,202.53,202.46,4.9408]
[1755965054539,2.63,202.53,202.4,24.7116]
[1755965054540,2.63,202.53,202.45,24.7055]
[1755965054938,122.66,202.54,202.5,4.9398]
[1755965055339,122.66,202.54,202.5,7.6198]
[1755965055639,336.7969,202.63,202.5,7.6198]
[1755965055640,122.8,202.58,202.5,2.68]
[1755965055835,122.78,202.58,202.5,2.68]
[1755965056537,122.78,202.58,202.54,4.9388]
[1755965056838,2.63,202.57,202.54,4.9388]
[1755965057438,122.78,202.58,202.51,4.9394]
[1755965057633,7.99548757,202.56,202.51,4.9394]
[1755965057842,2.63,202.55,202.46,27.3842]
[1755965058233,2.63,202.55,202.5,4.9398]
[1755965058436,2.63,202.55,202.46,27.3842]
[1755965058437,7.99548757,202.57,202.49,2.68]
[1755965058938,7.99548757,202.57,202.51,4.9395]
[1755965059138,7.99548757,202.57,202.5,24.6992]
[1755965060338,7.99548757,202.57,202.5,4.9397]
[1755965060547,2.63,202.52,202.45,27.3855]
[1755965061538,2.63,202.52,202.47,4.9404]
[1755965061837,7.99548757,202.53,202.47,7.6204]
[1755965062036,10.62548757,202.53,202.47,7.6204]
[1755965062643,10.62548757,202.53,202.49,4.9401]
[1755965062839,7.99548757,202.53,202.49,4.9401]
[1755965063343,7.99548757,202.53,202.46,7.6206]
[1755965063344,2.63,202.52,202.46,7.6206]
[1755965064644,7.99548757,202.49,202.43,4.9415]
[1755965066546,10.62548757,202.49,202.44,4.9411]
[1755965066747,7.99548757,202.53,202.46,2.68]
[1755965067646,7.99548757,202.53,202.49,2.68]
[1755965067847,7.99548757,202.53,202.5,2.68]
[1755965068147,2.63,202.55,202.46,24.7041]
[1755965068341,2.63,202.55,202.48,24.7012]
[1755965068541,122.94,202.56,202.49,2.68]
[1755965069643,122.94,202.56,202.52,4.9391]
[1755965070052,125.57,202.56,202.52,4.9391]
[1755965070443,125.57,202.56,202.54,4.9389]
[1755965071447,2.63,202.55,202.52,4.9394]
[1755965072451,2.63,202.55,202.53,4.939]
[1755965075754,2.63,202.55,202.51,4.9395]
[1755965075948,2.63,202.55,202.51,7.6095]
[1755965076453,2.63,202.55,202.52,7.6092]
[1755965077755,2.63,202.55,202.53,4.939]
[1755965081657,2.55,202.53,202.46,2.67]
[1755965082259,2.55,202.53,202.47,4.9405]
[1755965083054,2.55,202.49,202.45,7.611]
[1755965083751,130.57548757,202.5,202.45,4.941]
[1755965084056,2.55,202.49,202.45,7.611]
[1755965084867,130.57548757,202.5,202.45,4.941]
[1755965085060,2.55,202.48,202.45,4.941]
[1755965085766,2.55,202.49,202.46,4.9407]
[1755965087559,7.99548757,202.5,202.47,2.67]
[1755965087759,2.55,202.49,202.46,4.9407]
[1755965088766,2.55,202.48,202.46,4.9407]
[1755965088967,130.47548757,202.5,202.46,4.9407]
[1755965089168,2.55,202.49,202.46,4.9407]
[1755965089368,2.55,202.48,202.46,4.9407]
[1755965089765,2.55,202.48,202.44,4.9412]
[1755965089970,2.55,202.48,202.45,7.47728253]
[1755965090171,2.55,202.48,202.45,2.67]
[1755965090570,2.55,202.48,202.46,4.8094566]
[1755965090763,2.55,202.48,202.45,2.67]
[1755965090968,130.47548757,202.5,202.46,4.80942064]
[1755965091269,2.55,202.49,202.45,7.611]
[1755965092375,2.55,202.49,202.46,4.8142105]
[1755965092573,2.55,202.49,202.45,7.611]
[1755965092773,2.55,202.49,202.46,7.48420966]
[1755965093074,2.55,202.49,202.46,2.67]
[1755965093475,122.48,202.5,202.46,7.6107]
[1755965093774,122.32,202.49,202.48,2.67]
[1755965093964,122.32,202.49,202.43,2.67]
[1755965094170,122.32,202.49,202.46,4.9407]
[1755965094371,124.87,202.49,202.47,4.82071845]
[1755965094574,124.87,202.49,202.46,7.6107]
[1755965094873,124.87,202.49,202.47,4.82068364]
[1755965095174,124.87,202.49,202.46,7.6107]
[1755965095376,2.55,202.48,202.47,4.82068364]
[1755965096769,2.55,202.48,202.47,4.82351159]
[1755965097982,2.55,202.48,202.44,4.9412]
[1755965098173,2.55,202.48,202.45,7.49330722]
[1755965098369,2.55,202.48,202.46,4.82330722]
[1755965098575,2.55,202.48,202.47,4.82330722]
[1755965099376,122.32,202.49,202.45,4.941]
[1755965099579,122.32,202.49,202.46,7.49409238]
[1755965099875,122.32,202.49,202.4,24.7116]
[1755965099876,122.2,202.49,202.47,4.82409238]
[1755965100069,122.18,202.5,202.48,7.49409238]
[1755965100274,122.18,202.5,202.48,2.67]
[1755965100675,122.18,202.5,202.47,2.67]
[1755965101383,124.73,202.5,202.47,2.67]
[1755965102372,2.55,202.49,202.46,7.6107]
[1755965102578,2.55,202.49,202.47,4.82423734]
[1755965102772,122.18,202.5,202.43,24.7077]
[1755965102978,122.16,202.49,202.45,2.67]
[1755965103275,122.18,202.51,202.47,2.67]
[1755965103479,7.99548757,202.57,202.49,2.61]
[1755965103682,122.2,202.56,202.51,2.61]
[1755965103988,122.2,202.56,202.53,2.61]
[1755965104283,122.2,202.56,202.54,4.82423734]
[1755965104482,124.88,202.56,202.53,7.549]
[1755965104785,124.88,202.56,202.53,4.939]
[1755965105485,122.2,202.56,202.54,12.37186653]
[1755965105681,2.0,202.62,202.49,2.61]
[1755965105682,2.68,202.61,202.49,2.61]
[1755965105882,122.16,202.6,202.56,7.5483]
[1755965106078,122.16,202.6,202.57,2.61]
[1755965106581,122.16,202.6,202.51,24.6973]
[1755965106582,331.86,202.63,202.58,2.61]
[1755965106786,331.86,202.63,202.59,7.43067629]
[1755965106787,122.2,202.62,202.59,7.43067629]
[1755965106982,2.68,202.68,202.61,2.61]
[1755965107180,2.68,202.66,202.62,4.9368]
[1755965107581,2.68,202.66,202.57,24.6907]
[1755965107582,122.24,202.65,202.58,2.61]
[1755965107781,2.68,202.7,202.61,2.61]
[1755965107984,122.22,202.69,202.62,4.81524604]
[1755965108186,122.22,202.69,202.64,2.61]
[1755965108485,87.12732867,202.72,202.68,2.61]
[1755965108788,122.22,202.71,202.62,24.6844]
[1755965108989,122.22,202.71,202.68,2.61]
[1755965109482,122.22,202.71,202.62,24.6844]
[1755965109483,122.22,202.71,202.69,7.545]
[1755965109682,122.22,202.71,202.7,2.61]
[1755965109889,87.12732867,202.72,202.7,2.61]
[1755965110289,87.12732867,202.72,202.66,7.5458]
[1755965110486,87.12732867,202.72,202.68,2.61]
[1755965110885,89.80732867,202.72,202.68,2.61]
[1755965111087,89.80732867,202.72,202.64,2.61]
[1755965111684,2.68,202.69,202.6,7.5472]
[1755965111890,122.28,202.68,202.61,4.79403325]
[1755965112084,122.28,202.68,202.6,7.5472]
[1755965112290,2.68,202.65,202.57,128.85163311]
[1755965112492,7.99548757,202.66,202.58,7.40232114]
[1755965112790,122.3,202.65,202.59,4.79232114]
[1755965112983,122.3,202.65,202.61,2.61]
[1755965113379,124.98,202.65,202.57,151.21443311]
[1755965113589,124.98,202.65,202.58,4.79045328]
[1755965113787,124.98,202.65,202.59,4.79045328]
[1755965113987,124.98,202.65,202.57,126.52373311]
[1755965114289,124.98,202.65,202.58,4.79058065]
[1755965114591,2.68,202.65,202.57,126.52373311]
[1755965114793,122.32,202.64,202.58,4.78947747]
[1755965114993,122.32,202.64,202.58,4.9377]
[1755965115184,2.68,202.62,202.53,27.3048]
[1755965115495,2.68,202.63,202.59,4.9377]
[1755965116288,2.68,202.71,202.59,2.61]
[1755965116488,130.37548757,202.7,202.6,4.78751834]
[1755965116690,130.37548757,202.7,202.61,4.78751834]
[1755965116992,130.37548757,202.7,202.61,27.296]
[1755965117896,130.37548757,202.7,202.65,4.9362]
[1755965118086,2.68,202.69,202.65,4.9362]
[1755965118497,130.37548757,202.7,202.65,4.9362]
[1755965118692,2.68,202.69,202.63,4.9367]
[1755965120696,7.99548757,202.66,202.6,4.9374]
[1755965120891,122.42,202.65,202.6,4.9374]
[1755965121090,2.68,202.63,202.6,4.9374]
[1755965121694,122.42,202.65,202.6,4.9374]
[1755965121896,122.42,202.65,202.5,24.6993]
[1755965121897,2.68,202.64,202.58,4.9379]
[1755965122493,7.99548757,202.62,202.56,4.9384]
[1755965122691,2.68,202.61,202.56,4.9384]
[1755965122885,122.4,202.6,202.56,4.9384]
[1755965123093,125.08,202.6,202.56,4.9384]
[1755965124592,122.4,202.6,202.53,4.9389]
[1755965124791,125.08,202.6,202.53,4.9389]
[1755965126696,2.68,202.59,202.53,4.9389]
[1755965127096,2.68,202.59,202.5,2.61]
[1755965127299,122.36,202.58,202.52,2.61]
[1755965127498,122.36,202.58,202.55,4.9384]
[1755965128498,2.68,202.59,202.55,4.9384]
[1755965128700,125.12,202.59,202.55,4.9384]
[1755965128905,125.12,202.59,202.56,4.9382]
[1755965129303,2.68,202.59,202.56,4.9382]
[1755965129605,125.1,202.59,202.56,4.9382]
[1755965129801,2.68,202.59,202.57,4.9379]
[1755965130001,125.08,202.59,202.57,4.9379]
[1755965130201,125.08,202.59,202.54,2.61]
[1755965130898,2.68,202.58,202.55,4.9386]
[1755965131100,2.68,202.57,202.55,4.9386]
[1755965131301,122.4,202.59,202.5,2.61]
[1755965131302,2.68,202.56,202.5,2.61]
[1755965131504,122.4,202.59,202.51,4.88979987]
[1755965131705,2.68,202.55,202.5,2.61]
[1755965132005,2.68,202.55,202.51,4.88980659]
[1755965132204,2.68,202.55,202.52,4.88980659]
[1755965132404,2.68,202.55,202.51,2.61]
[1755965132706,125.08,202.59,202.53,4.9391]
[1755965134208,2.68,202.59,202.53,4.9391]
[1755965134506,2.58,202.57,202.53,4.9391]
[1755965134906,124.88,202.57,202.53,4.9391]
[1755965135309,2.58,202.56,202.53,4.9391]
[1755965137210,2.58,202.56,202.54,4.9387]
[1755965137805,124.88,202.57,202.54,4.9387]
[1755965139099,2.58,202.56,202.54,4.9387]
[1755965141107,2.58,202.55,202.54,4.9387]
[1755965142410,2.58,202.55,202.54,9.84290265]
[1755965143007,2.58,202.55,202.54,4.90420265]
[1755965143312,2.58,202.55,202.45,24.7047]
[1755965143705,4.9388,202.55,202.47,4.9405]
[1755965143906,7.99548757,202.53,202.47,4.9405]
[1755965144101,2.58,202.5,202.47,4.9405]
[1755965144909,2.58,202.49,202.47,4.9405]
[1755965146714,124.68,202.51,202.48,4.9402]
[1755965146910,2.58,202.5,202.48,4.9402]
[1755965148119,2.58,202.56,202.48,2.76]
[1755965148413,122.02,202.55,202.48,2.76]
[1755965148614,122.02,202.55,202.53,4.939]
[1755965149115,124.64,202.56,202.53,4.939]
[1755965149710,124.64,202.56,202.54,4.9387]
[1755965150216,2.58,202.6,202.5,2.76]